[Event "28th Bosnjaci Open 2024"]
[Site "Bosnjaci"]
[Date "2024.01.04"]
[Round "1.16"]
[White "Novosad, Ivan"]
[Black "Pavic, Filip"]
[Result "0-1"]
[ECO "B14"]
[WhiteElo "1776"]
[BlackElo "2261"]
[Annotator "RC"]
[PlyCount "70"]
[EventDate "2024.01.02"]
[EventType "swiss"]
[EventCountry "CRO"]
[SourceTitle "playchess.com"]
[Source "ChessBase"]
[SourceQuality "1"]
[TimeControl "5400+30"]

1. d4 {[%emt 0:02:10]} Nf6 {[%emt 0:00:09]} 2. c4 {[%emt 0:00:14]} c5 {[%emt 0:00:14]} 3. e3 {[%emt 0:01:38]} cxd4 {[%emt 0:00:24]} 4. exd4 {[%emt 0:00:12]} d5 {[%emt 0:00:47]} 5. Nc3 {[%emt 0:00:54]} e6 {[%emt 0:00:18]} 6. Nf3 {[%emt 0:00:09]} Bb4 {[%emt 0:00:35]} 7. a3 {[%emt 0:08:45]} Bxc3+ {[%emt 0:04:29]} 8. bxc3 {[%emt 0:02:05]} b6 {[%emt 0:05:08]} 9. Bg5 {[%emt 0:01:37]} O-O {[%emt 0:22:25]} 10. cxd5 {[%emt 0:08:31]} Qxd5 {[%emt 0:03:32]} 11. Bxf6 {[%emt 0:01:14]} gxf6 {[%emt 0:00:13]} 12. Bd3 {[%emt 0:01:40]} Ba6 {[%emt 0:01:34]} 13. O-O {[%emt 0:10:12]} Bxd3 {[%emt 0:00:48]} 14. Qxd3 {[%emt 0:00:07]} Nc6 {[%emt 0:00:30]} 15. Rab1 {[%emt 0:01:41]} Na5 {[%emt 0:05:18]} 16. Nd2 {[%emt 0:04:48]} f5 {[%emt 0:04:48]} 17. Rb5 {[%emt 0:04:04]} Qd6 {[%emt 0:03:18]} 18. Nf3 {[%emt 0:06:14]} Rfd8 {[%emt 0:07:54]} 19. g4 {[%emt 0:00:31]} a6 {[%emt 0:00:49]} 20. Re5 {[%emt 0:06:23]} Nc6 {[%emt 0:07:51]} 21. Re2 {[%emt 0:05:41]} Ne7 {[%emt 0:00:33]} 22. gxf5 {[%emt 0:02:42]} Nxf5 {[%emt 0:00:07]} 23. Qe4 {[%emt 0:01:56]} Kh8 {[%emt 0:13:17]} 24. Rb1 {[%emt 0:08:18]} b5 {[%emt 0:01:25]} 25. a4 {[%emt 0:03:43]} Qd5 {[%emt 0:01:58]} 26. axb5 {[%emt 0:01:47]} axb5 {[%emt 0:04:34]} 27. Qd3 {[%emt 0:02:18]} Rg8+ {[%emt 0:03:16]} 28. Kf1 {[%emt 0:02:55]} Nh4 {[%emt 0:01:19]} 29. Re3 {[%emt 0:01:42]} Rg4 {[%emt 0:03:09]} 30. Rb2 {[%emt 0:04:55]} Ra1+ {[%emt 0:00:35]} 31. Ke2 {[%emt 0:00:09]} Ng2 {[%emt 0:01:48]} 32. Qxb5 {[%emt 0:00:54]} Nxe3 {[%emt 0:00:22]} 33. Qb8+ {[%emt 0:01:51]} Kg7 {[%emt 0:00:05]} 34. Qe5+ {[%emt 0:01:03]} Qxe5 {[%emt 0:00:46]} 35. Nxe5 {[%emt 0:00:11]} Nd1 {[%emt 0:00:44]} 0-1

[Event "28th Bosnjaci Open 2024"]
[Site "Bosnjaci"]
[Date "2024.01.04"]
[Round "1.17"]
[White "Cvitan, Ena"]
[Black "Lovrinic, Vlatko"]
[Result "1/2-1/2"]
[ECO "D31"]
[WhiteElo "2242"]
[BlackElo "1760"]
[Annotator "RC"]
[PlyCount "86"]
[EventDate "2024.01.02"]
[EventType "swiss"]
[EventCountry "CRO"]
[SourceTitle "playchess.com"]
[Source "ChessBase"]
[SourceQuality "1"]
[TimeControl "5400+30"]

1. d4 {[%emt 0:00:15]} d5 {[%emt 0:00:07]} 2. c4 {[%emt 0:00:09]} e6 {[%emt 0:00:08]} 3. Nc3 {[%emt 0:00:06]} c6 {[%emt 0:00:13]} 4. e4 {[%emt 0:00:24]} dxe4 {[%emt 0:00:17]} 5. Nxe4 {[%emt 0:00:06]} Bb4+ {[%emt 0:00:30]} 6. Nc3 {[%emt 0:00:06]} Nf6 {[%emt 0:00:28]} 7. Nf3 {[%emt 0:00:24]} Nbd7 {[%emt 0:03:36]} 8. Bd3 {[%emt 0:05:07]} Bd6 {[%emt 0:07:59]} 9. O-O {[%emt 0:00:57]} O-O {[%emt 0:03:20]} 10. Re1 {[%emt 0:00:37]} h6 {[%emt 0:01:36]} 11. Bc2 {[%emt 0:03:15]} Re8 {[%emt 0:04:22]} 12. Qd3 {[%emt 0:02:29]} Nf8 {[%emt 0:18:56]} 13. c5 {[%emt 0:05:09]} Bc7 {[%emt 0:02:35]} 14. Ne5 {[%emt 0:00:33]} Bxe5 {[%emt 0:08:13]} 15. Rxe5 {[%emt 0:00:40]} Ng6 {[%emt 0:12:22]} 16. Re1 {[%emt 0:07:23]} e5 {[%emt 0:04:51]} 17. Be3 {[%emt 0:00:26]} Be6 {[%emt 0:05:04]} 18. Rad1 {[%emt 0:01:39]} Qc7 {[%emt 0:05:03]} 19. h3 {[%emt 0:04:41]} Rad8 {[%emt 0:01:23]} 20. b4 {[%emt 0:00:45]} Nd5 {[%emt 0:08:54]} 21. Nxd5 {[%emt 0:00:38]} Bxd5 {[%emt 0:01:07]} 22. Bb3 {[%emt 0:05:46]} exd4 {[%emt 0:01:54]} 23. Bc1 {[%emt 0:03:14]} Rxe1+ {[%emt 0:03:46]} 24. Rxe1 {[%emt 0:00:02]} Bxb3 {[%emt 0:00:20]} 25. axb3 {[%emt 0:00:08]} a6 {[%emt 0:00:45]} 26. Re4 {[%emt 0:00:26]} Qd7 {[%emt 0:00:49]} 27. Bb2 {[%emt 0:00:39]} Qc7 {[%emt 0:02:37]} 28. Rxd4 {[%emt 0:00:23]} Rxd4 {[%emt 0:00:40]} 29. Qxd4 {[%emt 0:00:18]} f6 {[%emt 0:00:17]} 30. Qe4 {[%emt 0:03:19]} Ne7 {[%emt 0:00:47]} 31. Qe6+ {[%emt 0:00:55]} Kf8 {[%emt 0:01:07]} 32. g3 {[%emt 0:02:56]} Qc8 {[%emt 0:00:37]} 33. Qd6 {[%emt 0:02:39]} Kf7 {[%emt 0:00:39]} 34. Kg2 {[%emt 0:01:27]} Nd5 {[%emt 0:00:29]} 35. h4 {[%emt 0:02:21]} Qe6 {[%emt 0:00:27]} 36. Qb8 {[%emt 0:00:18]} Qd7 {[%emt 0:01:11]} 37. h5 {[%emt 0:01:25]} Qe7 {[%emt 0:00:28]} 38. Kh2 {[%emt 0:01:04]} Qd7 {[%emt 0:00:22]} 39. Bc1 {[%emt 0:00:37]} Qc7 {[%emt 0:00:54]} 40. Qh8 {[%emt 0:00:35]} Qd7 {[%emt 0:00:12]} 41. Qh7 {[%emt 0:00:42]} Qg4 {[%emt 0:00:28]} 42. Qh8 {[%emt 0:01:17]} Qxh5+ {[%emt 0:00:16]} 43. Kg2 {[%emt 0:00:01]} Qe5 {[%emt 0:00:34]} 1/2-1/2

[Event "28th Bosnjaci Open 2024"]
[Site "Bosnjaci"]
[Date "2024.01.04"]
[Round "1.18"]
[White "Mutapcic, Ilija"]
[Black "Bobanac, Miro"]
[Result "0-1"]
[ECO "B23"]
[WhiteElo "1759"]
[BlackElo "2238"]
[Annotator "RC"]
[PlyCount "58"]
[EventDate "2024.01.02"]
[EventType "swiss"]
[EventCountry "CRO"]
[SourceTitle "playchess.com"]
[Source "ChessBase"]
[SourceQuality "1"]
[TimeControl "5400+30"]

1. e4 {[%emt 0:00:30]} c5 {[%emt 0:00:29]} 2. f4 {[%emt 1:31:00]} e6 {[%emt 0:01:33]} 3. Nf3 {[%emt 0:00:00]} Nf6 {[%emt 0:01:35]} 4. Nc3 {[%emt 0:00:00]} d5 {[%emt 0:01:10]} 5. e5 {[%emt 0:00:00]} Nh5 {[%emt 0:01:46]} 6. d4 {[%emt 0:00:00]} g6 {[%emt 0:00:15]} 7. Be3 {[%emt 0:00:00]} cxd4 {[%emt 0:02:56]} 8. Qxd4 {[%emt 0:00:00]} Nc6 {[%emt 0:00:36]} 9. Bb5 {[%emt 0:03:30]} a6 {[%emt 0:01:57]} 10. Bxc6+ {[%emt 0:00:30]} bxc6 {[%emt 0:00:13]} 11. Na4 {[%emt 0:00:00]} Ng7 {[%emt 0:05:54]} 12. g4 {[%emt 0:00:00]} h5 {[%emt 0:00:26]} 13. gxh5 {[%emt 0:00:00]} Nf5 {[%emt 0:00:43]} 14. Qb6 {[%emt 0:02:00]} Nxe3 {[%emt 0:01:03]} 15. Qxe3 {[%emt 0:00:00]} Qa5+ {[%emt 0:01:03]} 16. Nc3 {[%emt 0:00:00]} Rxh5 {[%emt 0:01:16]} 17. a3 {[%emt 0:00:00]} c5 {[%emt 0:00:54]} 18. Qd2 {[%emt 0:00:00]} Bb7 {[%emt 0:03:07]} 19. Ne4 {[%emt 0:00:00]} Qxd2+ {[%emt 0:01:04]} 20. Nexd2 {[%emt 0:00:00]} Bh6 {[%emt 0:00:18]} 21. O-O {[%emt 0:00:00]} Bxf4 {[%emt 0:00:52]} 22. Rae1 {[%emt 0:00:00]} Ke7 {[%emt 0:03:11]} 23. c3 {[%emt 0:00:00]} Rah8 {[%emt 0:03:46]} 24. Re2 {[%emt 0:00:00]} d4 {[%emt 0:00:56]} 25. cxd4 {[%emt 0:00:00]} cxd4 {[%emt 0:00:46]} 26. Nxd4 {[%emt 0:00:00]} Rg5+ {[%emt 0:03:21]} 27. Kf2 {[%emt 0:00:00]} Bxd2 {[%emt 0:03:31]} 28. Nf3 {[%emt 0:00:00]} Bxf3 {[%emt 0:01:48]} 29. Rxd2 {[%emt 0:00:00]} Rxh2+ {[%emt 0:00:52]} 0-1

[Event "28th Bosnjaci Open 2024"]
[Site "Bosnjaci"]
[Date "2024.01.04"]
[Round "1.19"]
[White "Rosic, Slavko S"]
[Black "Gundic, Danijel"]
[Result "1-0"]
[ECO "A52"]
[WhiteElo "2231"]
[BlackElo "1746"]
[Annotator "RC"]
[PlyCount "63"]
[EventDate "2024.01.02"]
[EventType "swiss"]
[EventCountry "CRO"]
[SourceTitle "playchess.com"]
[Source "ChessBase"]
[SourceQuality "1"]
[TimeControl "5400+30"]

1. d4 {[%emt 0:00:38]} Nf6 {[%emt 0:00:05]} 2. c4 {[%emt 0:00:11]} e5 {[%emt 0:00:05]} 3. dxe5 {[%emt 0:01:15]} Ng4 {[%emt 0:00:06]} 4. Nf3 {[%emt 0:00:14]} Bc5 {[%emt 0:00:12]} 5. e3 {[%emt 0:00:13]} Nc6 {[%emt 0:00:10]} 6. Be2 {[%emt 0:07:17]} Ngxe5 {[%emt 0:00:11]} 7. Nc3 {[%emt 0:01:27]} Nxf3+ {[%emt 0:01:28]} 8. Bxf3 {[%emt 0:01:50]} Ne5 {[%emt 0:00:22]} 9. Be2 {[%emt 0:00:21]} O-O {[%emt 0:01:01]} 10. O-O {[%emt 0:00:55]} Re8 {[%emt 0:00:09]} 11. Kh1 {[%emt 0:08:08]} a6 {[%emt 0:07:23]} 12. f4 {[%emt 0:07:21]} Nc6 {[%emt 0:03:40]} 13. Nd5 {[%emt 0:04:30]} Nb4 {[%emt 0:02:54]} 14. Rf3 {[%emt 0:02:13]} Nxd5 {[%emt 0:00:52]} 15. Qxd5 {[%emt 0:00:23]} d6 {[%emt 0:04:04]} 16. Rg3 {[%emt 0:05:06]} Qh4 {[%emt 0:11:10]} 17. Bd2 {[%emt 0:16:50]} c6 {[%emt 0:01:14]} 18. Qd3 {[%emt 0:00:46]} Kh8 {[%emt 0:04:49]} 19. b4 {[%emt 0:01:37]} Bb6 {[%emt 0:02:02]} 20. Rf1 {[%emt 0:01:59]} Qe7 {[%emt 0:03:32]} 21. Bf3 {[%emt 0:00:48]} Bd7 {[%emt 0:03:44]} 22. f5 {[%emt 0:02:32]} f6 {[%emt 0:00:25]} 23. e4 {[%emt 0:01:12]} Bc7 {[%emt 0:02:09]} 24. Bf4 {[%emt 0:00:20]} Rac8 {[%emt 0:00:11]} 25. Bh5 {[%emt 0:02:12]} Red8 {[%emt 0:00:41]} 26. Rh3 {[%emt 0:02:38]} Kg8 {[%emt 0:04:14]} 27. c5 {[%emt 0:04:02]} dxc5 {[%emt 0:04:28]} 28. Qc4+ {[%emt 0:00:09]} Be6 {[%emt 0:03:34]} 29. fxe6 {[%emt 0:00:54]} Bxf4 {[%emt 0:00:21]} 30. Rxf4 {[%emt 0:01:36]} cxb4 {[%emt 0:02:29]} 31. Bf7+ {[%emt 0:01:16]} Kh8 {[%emt 0:00:08]} 32. Rxh7+ {[%emt 0:01:14]} 1-0

[Event "28th Bosnjaci Open 2024"]
[Site "Bosnjaci"]
[Date "2024.01.04"]
[Round "1.20"]
[White "Simunic, Neno"]
[Black "Milovic, Jovan"]
[Result "0-1"]
[ECO "A43"]
[WhiteElo "1744"]
[BlackElo "2223"]
[Annotator "RC"]
[PlyCount "50"]
[EventDate "2024.01.02"]
[EventType "swiss"]
[EventCountry "CRO"]
[SourceTitle "playchess.com"]
[Source "ChessBase"]
[SourceQuality "1"]
[TimeControl "5400+30"]

1. d4 {[%emt 0:00:06]} c5 {[%emt 0:01:49]} 2. d5 {[%emt 0:00:31]} e6 {[%emt 0:00:08]} 3. c4 {[%emt 0:00:12]} Bd6 {[%emt 0:00:07]} 4. Nf3 {[%emt 0:01:58]} Bc7 {[%emt 0:00:08]} 5. Nc3 {[%emt 0:01:10]} d6 {[%emt 0:00:12]} 6. g3 {[%emt 0:03:46]} Nf6 {[%emt 0:01:40]} 7. Bg2 {[%emt 0:00:15]} e5 {[%emt 0:00:28]} 8. O-O {[%emt 0:00:44]} Nbd7 {[%emt 0:01:14]} 9. e4 {[%emt 0:07:47]} Ba5 {[%emt 0:02:19]} 10. Nh4 {[%emt 0:04:51]} O-O {[%emt 0:06:44]} 11. Qc2 {[%emt 0:09:23]} Re8 {[%emt 0:01:12]} 12. Ne2 {[%emt 0:05:12]} b5 {[%emt 0:05:21]} 13. b3 {[%emt 0:02:03]} bxc4 {[%emt 0:01:42]} 14. Qxc4 {[%emt 0:00:41]} Rb8 {[%emt 0:00:37]} 15. f4 {[%emt 0:00:36]} exf4 {[%emt 0:02:53]} 16. Bxf4 {[%emt 0:00:19]} Ne5 {[%emt 0:01:44]} 17. Qc2 {[%emt 0:02:07]} Qb6 {[%emt 0:05:16]} 18. Kh1 {[%emt 0:01:00]} Ba6 {[%emt 0:01:22]} 19. Bg5 {[%emt 0:03:35]} Bd3 {[%emt 0:00:24]} 20. Qd1 {[%emt 0:01:32]} Nxe4 {[%emt 0:00:23]} 21. Bf4 {[%emt 0:01:41]} Ng4 {[%emt 0:02:08]} 22. Bxe4 {[%emt 0:02:06]} Bxe4+ {[%emt 0:00:12]} 23. Ng2 {[%emt 0:00:19]} c4 {[%emt 0:00:35]} 24. Qd4 {[%emt 0:00:37]} Bxg2+ {[%emt 0:00:08]} 25. Kxg2 {[%emt 0:00:10]} Rxe2+ {[%emt 0:00:04]} 0-1

[Event "28th Bosnjaci Open 2024"]
[Site "Bosnjaci"]
[Date "2024.01.04"]
[Round "2.1"]
[White "Troselj, Ivan"]
[Black "Saric, Ante"]
[Result "0-1"]
[ECO "B50"]
[WhiteElo "2067"]
[BlackElo "2508"]
[Annotator "TA"]
[PlyCount "98"]
[EventDate "2024.01.02"]
[EventType "swiss"]
[EventCountry "CRO"]
[SourceTitle "playchess.com"]
[Source "ChessBase"]
[SourceQuality "1"]
[TimeControl "5400+30"]

{[%evp 13,98,0,0,-5,0,-8,9,13,20,8,10,16,22,7,56,56,57,21,19,-36,-24,-26,-16,-37,-22,-25,0,0,0,0,0,0,0,-89,-72,-62,-65,-164,-173,-178,-146,-163,-170,-339,-323,-337,-318,-575,-591,-777,-687,-770,-613,-875,-702,-866,-950,-913,-889,-2815,-2763,-3110,-2429,-2295,-2178,-29989,-29989,-29992,-29993,-29993,-29991,-29997,-29991,-29991,-29992,-29992,-29993,-29994,-29993,-29994,-29994,-29994,-29989,-29994,-29994,-29994,-29994]} 1. e4 {[%emt 0:00:02]} c5 {[%emt 0:00:58]} 2. Nf3 {[%emt 0:00:08]} d6 {[%emt 0:00:19]} 3. h3 {[%emt 0:00:07]} Nf6 {[%emt 0:00:41]} 4. c3 {[%emt 0:00:02]} g6 {[%emt 0:00:16]} 5. Bd3 {[%emt 0:00:07]} Bg7 {[%emt 0:00:06]} 6. Bc2 {[%emt 0:00:06]} e5 {[%emt 0:00:05]} 7. O-O {[%emt 0:00:19] The main line 7.0-0 scores better than 7.d4.} O-O {[%emt 0:00:04]} 8. d3 {[%emt 0:00:26] B50: Sicilian: 2...d6, Miscellaneous.} Nc6 {[%emt 0:01:40]} 9. Bg5 {[%emt 0:01:05]} d5 {[%emt 0:09:07]} 10. Nbd2 {[%emt 0:03:58][%cal Bb1d2,Bd2e4,Be4g3][%mdl 32] [#] The position is equal.} h6 $146 {[%emt 0:14:54]} ({Predecessor:} 10... d4 11. cxd4 cxd4 12. Ba4 Qc7 13. Rc1 Bd7 14. a3 a6 15. Bh4 Nh5 16. Bg3 b5 {0-1 Zhorzholiani,M-Chalabashvili,T (2074) GEO-ch sf (Women) 2002 (6)}) 11. Bxf6 {[%emt 0:01:47]} Bxf6 {[%emt 0:00:04]} 12. exd5 {[%emt 0:00:07]} Qxd5 {[%emt 0:00:05]} 13. Ne4 {[%emt 0:00:14]} (13. Re1 {simplifies} Bg7 14. Ba4 Qxd3 15. Bxc6 bxc6 16. Nxe5 Bxe5 17. Rxe5 Rd8 18. Re1) 13... Be7 {[%emt 0:01:17]} (13... Bg7 $11 {should be considered.}) 14. Qd2 {[%emt 0:05:20]} Kg7 {[%emt 0:04:12]} 15. Bb3 {[%emt 0:01:03]} Qd8 {[%emt 0:03:20]} 16. Rad1 {[%emt 0:01:21]} (16. Qe3 $11) 16... f5 $15 {[%emt 0:01:17]} 17. Ng3 {[%emt 0:00:15]} Bf6 {[%emt 0:00:41]} 18. Rfe1 {[%emt 0:02:25][%cal Oh3h4]} Qd6 {[%emt 0:04:36]} 19. h4 {[%emt 0:01:41][%cal Bh3h4,Bh4h5][%mdl 32]} Bd7 {[%emt 0:04:23]} (19... Be6 20. Bxe6 Qxe6 21. h5 $11) 20. h5 {[%emt 0:00:59]} g5 {[%emt 0:00:41][%cal Bg6g5,Bg5g4][%mdl 32]} 21. Qc2 {[%emt 0:01:53][%cal Od3d4]} Ne7 $1 {[%emt 0:13:36]} 22. Qe2 {[%emt 0:07:44][%cal Rf3e5]} Nc6 {[%emt 0:00:38]} 23. Bc2 {[%emt 0:09:23]} (23. Qc2 $11) 23... g4 {[%emt 0:16:54]} 24. Nd2 {[%emt 0:02:55][%cal Od3d4] [#] d4! would be deadly.} Rae8 $1 {[%emt 0:00:19]} 25. d4 {[%emt 0:04:00] White is on the road to losing.} exd4 $19 {[%emt 0:00:33][%cal Be5d4,Bd4d3][%mdl 32]} ({But not} 25... cxd4 26. Bxf5 (26. Nxf5+ Bxf5 27. Bxf5 g3 $16) 26... Kh8 27. Nde4 $18 (27. Bxg4 Qe7 $16) (27. Qxg4 Rg8 $18)) 26. Qd3 {[%emt 0:00:18]} Rxe1+ {[%emt 0:03:29]} 27. Rxe1 {[%emt 0:00:06]} Bh4 {[%emt 0:03:17] White must now prevent ...Ne5.} 28. Ndf1 $2 {[%emt 0:05:43]} (28. Nc4 {was called for.} Qb8 29. a4) 28... Ne5 {[%emt 0:03:29]} 29. Qd1 {[%emt 0:03:29]} d3 {[%emt 0:01:28]} 30. Bb1 $2 {[%emt 0:00:11]} (30. Rxe5 {might work better.} Bxg3 31. Nxg3 Qxe5 32. Qxd3) 30... c4 {[%emt 0:00:40] Hoping for ...f4.} 31. b3 {[%emt 0:02:40]} b5 {[%emt 0:00:14] ...f4 is the strong threat.} 32. a4 {[%emt 0:00:05]} a6 {[%emt 0:00:32][%cal Ba7a6,Ba6b5,Bb5c4][%mdl 32]} 33. Ba2 {[%emt 0:00:11]} Bc6 {[%emt 0:02:00][%cal Oc6f3]} 34. axb5 {[%emt 0:01:03]} axb5 {[%emt 0:00:05] Threatens to win with ...Bxg3.} 35. bxc4 {[%emt 0:00:05]} bxc4 {[%emt 0:00:10] Strongly threatening ...Bxg3.} 36. Ne3 {[%emt 0:01:18]} Bxg3 {[%emt 0:00:35]} 37. fxg3 {[%emt 0:00:03] [#]} Nf3+ $1 {[%emt 0:01:40][%mdl 576] Discovered Attack} 38. gxf3 {[%emt 0:02:06]} Qxg3+ {[%emt 0:01:46]} 39. Kf1 {[%emt 0:00:02]} Bxf3 {[%emt 0:00:59] Black mates.} 40. Qb1 {[%emt 0:02:56]} Qh3+ {[%emt 0:00:45]} 41. Kf2 {[%emt 0:00:17]} Qh2+ {[%emt 0:00:19]} 42. Kf1 {[%emt 0:00:03]} Be2+ {[%emt 0:00:11]} 43. Rxe2 {[%emt 0:00:27]} Qxe2+ {[%emt 0:00:14]} 44. Kg1 {[%emt 0:00:03]} Qxe3+ {[%emt 0:00:05]} 45. Kh2 {[%emt 0:00:16]} Qf4+ {[%emt 0:00:22]} 46. Kg1 {[%emt 0:00:06]} Qg3+ {[%emt 0:00:33]} 47. Kf1 {[%emt 0:00:16]} Rb8 {[%emt 0:00:33]} 48. Qc1 {[%emt 0:00:21]} Qf3+ {[%emt 0:00:32]} 49. Kg1 {[%emt 0:00:06]} g3 {[%emt 0:00:21] Artfully played by Saric.   Weighted Error Value: White=0.80/Black=0.16 (very precise)} 0-1

[Event "28th Bosnjaci Open 2024"]
[Site "Bosnjaci"]
[Date "2024.01.04"]
[Round "2.2"]
[White "Zaja, Ivan"]
[Black "Sundac, Ivano"]
[Result "1-0"]
[ECO "D61"]
[WhiteElo "2419"]
[BlackElo "2070"]
[Annotator "RC"]
[PlyCount "95"]
[EventDate "2024.01.02"]
[EventType "swiss"]
[EventCountry "CRO"]
[SourceTitle "playchess.com"]
[Source "ChessBase"]
[SourceQuality "1"]
[TimeControl "5400+30"]

1. d4 {[%emt 0:00:06]} d5 {[%emt 0:00:08]} 2. c4 {[%emt 0:00:17]} e6 {[%emt 0:00:05]} 3. Nc3 {[%emt 0:00:16]} Nf6 {[%emt 0:00:05]} 4. Nf3 {[%emt 0:01:36]} Be7 {[%emt 0:01:20]} 5. Bg5 {[%emt 0:00:57]} O-O {[%emt 0:00:29]} 6. e3 {[%emt 0:00:43]} c6 {[%emt 0:03:29]} 7. Qc2 {[%emt 0:02:13]} Nbd7 {[%emt 0:01:28]} 8. Rd1 {[%emt 0:01:21]} h6 {[%emt 0:02:01]} 9. Bh4 {[%emt 0:00:18]} b6 {[%emt 0:03:47]} 10. cxd5 {[%emt 0:00:24]} exd5 {[%emt 0:00:54]} 11. Bd3 {[%emt 0:04:49]} Re8 {[%emt 0:01:15]} 12. O-O {[%emt 0:00:54]} Bb7 {[%emt 0:01:01]} 13. Rfe1 {[%emt 0:03:43]} Ne4 {[%emt 0:02:17]} 14. Bxe4 {[%emt 0:05:16]} Bxh4 {[%emt 0:04:10]} 15. Bh7+ {[%emt 0:00:33]} Kh8 {[%emt 0:02:29]} 16. Bf5 {[%emt 0:00:15]} Nf8 {[%emt 0:03:21]} 17. Ne5 {[%emt 0:06:03]} Kg8 {[%emt 0:02:59]} 18. e4 {[%emt 0:01:48]} Bf6 {[%emt 0:03:51]} 19. exd5 {[%emt 0:03:10]} Bxe5 {[%emt 0:00:40]} 20. dxe5 {[%emt 0:10:27]} cxd5 {[%emt 0:00:09]} 21. Nb5 {[%emt 0:03:58]} Re7 {[%emt 0:05:25]} 22. Nd6 {[%emt 0:01:58]} Rc7 {[%emt 0:03:11]} 23. Nxb7 {[%emt 0:02:12]} Rxb7 {[%emt 0:01:16]} 24. Qc6 {[%emt 0:00:20]} Rc7 {[%emt 0:01:24]} 25. Qxd5 {[%emt 0:00:12]} Qxd5 {[%emt 0:01:01]} 26. Rxd5 {[%emt 0:00:03]} g6 {[%emt 0:00:27]} 27. Bd3 {[%emt 0:02:02]} Ne6 {[%emt 0:00:52]} 28. g3 {[%emt 0:00:15]} Rac8 {[%emt 0:02:19]} 29. Kg2 {[%emt 0:03:32]} Rc5 {[%emt 0:02:19]} 30. Rd6 {[%emt 0:01:50]} R8c6 {[%emt 0:00:50]} 31. Be4 {[%emt 0:08:13]} Rxd6 {[%emt 0:02:10]} 32. exd6 {[%emt 0:00:01]} Nf8 {[%emt 0:02:32]} 33. Bf3 {[%emt 0:05:58]} Rc2 {[%emt 0:01:56]} 34. Re7 {[%emt 0:00:19]} Rxb2 {[%emt 0:01:40]} 35. Bd5 {[%emt 0:02:19]} Rd2 {[%emt 0:00:23]} 36. Bxf7+ {[%emt 0:00:17]} Kh8 {[%emt 0:00:14]} 37. d7 {[%emt 0:03:51]} Nxd7 {[%emt 0:04:40]} 38. Bxg6 {[%emt 0:00:30]} Nf6 {[%emt 0:00:39]} 39. Bf5 {[%emt 0:07:39]} Rd5 {[%emt 0:09:03]} 40. g4 {[%emt 0:00:46]} h5 {[%emt 0:02:23]} 41. h3 {[%emt 0:00:35]} Ra5 {[%emt 0:01:31]} 42. Rf7 {[%emt 0:01:05]} Nd5 {[%emt 0:01:51]} 43. Be6 {[%emt 0:03:13]} hxg4 {[%emt 0:00:05]} 44. hxg4 {[%emt 0:00:11]} Nc3 {[%emt 0:00:59]} 45. f4 {[%emt 0:00:18]} Nxa2 {[%emt 0:00:05]} 46. g5 {[%emt 0:00:10]} Nc3 {[%emt 0:00:35]} 47. g6 {[%emt 0:00:14]} Rh5 {[%emt 0:00:23]} 48. Rc7 {[%emt 0:01:18]} 1-0

[Event "28th Bosnjaci Open 2024"]
[Site "Bosnjaci"]
[Date "2024.01.04"]
[Round "2.3"]
[White "Zelenika, Zoran"]
[Black "Fercec, Nenad"]
[Result "0-1"]
[ECO "D02"]
[WhiteElo "2059"]
[BlackElo "2410"]
[Annotator "RC"]
[PlyCount "80"]
[EventDate "2024.01.02"]
[EventType "swiss"]
[EventCountry "CRO"]
[SourceTitle "playchess.com"]
[Source "ChessBase"]
[SourceQuality "1"]
[TimeControl "5400+30"]

1. Nf3 {[%emt 0:00:30]} d5 {[%emt 0:01:38]} 2. g3 {[%emt 0:00:00]} Nc6 {[%emt 0:00:08]} 3. d4 {[%emt 0:00:00]} Bf5 {[%emt 0:00:05]} 4. Bg2 {[%emt 0:00:19]} Nb4 {[%emt 0:00:05]} 5. Na3 {[%emt 0:00:05]} Nf6 {[%emt 0:00:14]} 6. c3 {[%emt 0:01:57]} Nc6 {[%emt 0:00:04]} 7. Ne5 {[%emt 0:00:44]} e6 {[%emt 0:01:50]} 8. Qa4 {[%emt 0:02:22]} Bxa3 {[%emt 0:03:38]} 9. Nxc6 {[%emt 0:01:37]} Qd7 {[%emt 0:00:05]} 10. Qxa3 {[%emt 0:00:12]} Qxc6 {[%emt 0:00:07]} 11. Bf4 {[%emt 0:01:41]} Nh5 {[%emt 0:03:45]} 12. Qc5 {[%emt 0:02:05]} Qxc5 {[%emt 0:13:35]} 13. dxc5 {[%emt 0:00:07]} Nxf4 {[%emt 0:00:05]} 14. gxf4 {[%emt 0:00:06]} a5 {[%emt 0:00:30]} 15. c4 {[%emt 0:02:33]} c6 {[%emt 0:02:43]} 16. cxd5 {[%emt 0:00:14]} cxd5 {[%emt 0:00:06]} 17. Rc1 {[%emt 0:01:09]} Ke7 {[%emt 0:00:38]} 18. Kd2 {[%emt 0:00:32]} Rhc8 {[%emt 0:00:41]} 19. Rc3 {[%emt 0:01:27]} a4 {[%emt 0:00:35]} 20. Rhc1 {[%emt 0:02:48]} Ra5 {[%emt 0:03:53]} 21. e3 {[%emt 0:00:17]} Rb5 {[%emt 0:01:18]} 22. b3 {[%emt 0:00:04]} axb3 {[%emt 0:00:04]} 23. Rxb3 {[%emt 0:00:12]} Rxb3 {[%emt 0:09:53]} 24. axb3 {[%emt 0:00:01]} Ra8 {[%emt 0:00:08]} 25. c6 {[%emt 0:03:24]} Ra2+ {[%emt 0:00:21]} 26. Ke1 {[%emt 0:00:01]} bxc6 {[%emt 0:00:19]} 27. Rxc6 {[%emt 0:00:01]} Rb2 {[%emt 0:00:46]} 28. Rc7+ {[%emt 0:00:21]} Kf6 {[%emt 0:00:12]} 29. Rb7 {[%emt 0:00:06]} Bc2 {[%emt 0:00:15]} 30. b4 {[%emt 0:00:22]} Bd3 {[%emt 0:00:05]} 31. Bf3 {[%emt 0:00:24]} Bc4 {[%emt 0:00:16]} 32. Bh5 {[%emt 0:03:20]} g6 {[%emt 0:00:15]} 33. Bd1 {[%emt 0:00:08]} h6 {[%emt 0:01:08]} 34. h4 {[%emt 0:00:18]} h5 {[%emt 0:00:52]} 35. Ba4 {[%emt 0:01:17]} Re2+ {[%emt 0:01:07]} 36. Kd1 {[%emt 0:00:03]} Rxf2 {[%emt 0:00:11]} 37. Be8 {[%emt 0:00:06]} Kf5 {[%emt 0:00:03]} 38. Rxf7+ {[%emt 0:00:12]} Ke4 {[%emt 0:00:11]} 39. Rf6 {[%emt 0:00:09]} Kd3 {[%emt 0:01:15]} 40. Bxg6+ {[%emt 0:00:02]} Kc3 {[%emt 0:00:06]} 0-1